lending/lending_fUSD_20250808
["ID","MTS","AMOUNT","RATE_DAILY","PERIOD"]
[377981325,1754646632835,-400.0,0.00018769,2]
[377981327,1754646632844,-400.0,0.00018769,2]
[377981329,1754646632854,-400.0,0.00018769,2]
[377981331,1754646632864,-160.60861122,0.00018769,2]
[377981333,1754646632874,-400.0,0.00018769,2]
[377981335,1754646632884,-400.0,0.00018769,2]
[377981337,1754646632894,-441.31,0.00018769,2]
[377981339,1754646632903,-400.0,0.00018769,2]
[377981341,1754646632913,-400.0,0.00018769,2]
[377981343,1754646632922,-400.0,0.00018769,2]
[377981345,1754646632932,-400.0,0.00018769,2]
[377981347,1754646632941,-504.18,0.00018769,2]
[377981349,1754646632951,-400.0,0.00018769,2]
[377981351,1754646632962,-400.0,0.00018769,2]
[377981353,1754646632971,-400.0,0.00018769,2]
[377981355,1754646632982,-496.69,0.00018769,2]
[377981357,1754646632992,-400.0,0.00018769,2]
[377981359,1754646633001,-400.0,0.00018769,2]
[377981361,1754646633011,-400.0,0.00018769,2]
[377981363,1754646633021,-522.81,0.00018769,2]
[377981365,1754646633030,-400.0,0.00018769,2]
[377981367,1754646633040,-556.4,0.00018769,2]
[377981368,1754646633050,-826.35,0.00018769,2]
[377981369,1754646633059,-400.0,0.00018769,2]
[377981370,1754646633070,-507.33,0.00018769,2]
[377981371,1754646633080,-400.0,0.00018769,2]
[377981372,1754646633090,-400.0,0.00018769,2]
[377981373,1754646633100,-400.0,0.00018769,2]
[377981374,1754646633110,-794.36,0.00018769,2]
[377981375,1754646633120,-430.35,0.00018769,2]
[377981376,1754646633130,-400.0,0.00018769,2]
[377981377,1754646633139,-747.9,0.00018769,2]
[377981378,1754646633150,-400.0,0.00018769,2]
[377981379,1754646633160,-880.56,0.00018769,2]
[377981380,1754646633170,-400.0,0.00018769,2]
[377981381,1754646633180,-400.0,0.00018769,2]
[377981382,1754646633190,-402.75096297,0.00018769,2]
[377981383,1754646633200,-400.0,0.00018769,2]
[377981384,1754646633210,-400.0,0.00018769,2]
[377981385,1754646633219,-400.0,0.00018769,2]
[377981386,1754646633229,-224.48318617,0.00018769,2]
[377981387,1754646633254,-391.85681383,0.00018769,2]
[377981388,1754646633264,-400.0,0.00018769,2]
[377981389,1754646633275,-400.0,0.00018769,2]
[377981390,1754646633285,-32.91159371,0.00018769,2]
[377981391,1754646633316,-367.08840629,0.00018769,2]
[377981392,1754646633326,-203.21159371,0.00018769,2]
[377981419,1754646638202,-211.41973355,0.00018671,2]
[377981420,1754646638212,-151.0,0.00018711,2]
[377981421,1754646638221,-214.12840629,0.00018769,2]
[377981422,1754646638230,-400.0,0.00018769,2]
[377981423,1754646638240,-1254.32,0.00018769,2]
[377981424,1754646638249,-73.05111776,0.00018769,2]
[377981425,1754646638260,-281.55,0.00018769,2]
[377981426,1754646638279,-45.39888224,0.00018769,2]
[377981427,1754646638288,-224.39351171,0.00018769,2]
[377981428,1754646638299,-175.60648829,0.00018769,2]
[377981429,1754646638309,-434.93,0.00018769,2]
[377981430,1754646638320,-676.26,0.00018769,2]
[377981431,1754646638330,-400.0,0.00018769,2]
[377981432,1754646638339,-400.0,0.00018769,2]
[377981433,1754646638348,-141.19778202,0.00018769,2]
[377981434,1754646638376,-968.77221798,0.00018769,2]
[377981435,1754646638386,-400.0,0.00018769,2]
[377981436,1754646638396,-488.41,0.00018769,2]
[377981437,1754646638406,-400.0,0.00018769,2]
[377981438,1754646638415,-400.0,0.00018769,2]
[377981439,1754646638425,-400.0,0.00018769,2]
[377981440,1754646638434,-578.16,0.00018769,2]
[377981441,1754646638443,-1306.23,0.00018769,2]
[377981442,1754646638453,-400.0,0.00018769,2]
[377981443,1754646638462,-517.57,0.00018769,2]
[377981444,1754646638471,-400.0,0.00018769,2]
[377981446,1754646638481,-757.26,0.00018769,2]
[377981447,1754646638490,-400.0,0.00018769,2]
[377981448,1754646638500,-400.0,0.00018769,2]
[377981449,1754646638510,-405.15179473,0.00018769,2]
[377981450,1754646638520,-1437.67,0.00018769,2]
[377981451,1754646638529,-498.05,0.00018769,2]
[377981452,1754646638539,-400.0,0.00018769,2]
[377981453,1754646638548,-400.0,0.00018769,2]
[377981454,1754646638558,-400.0,0.00018769,2]
[377981455,1754646638567,-315.76775836,0.00018769,2]
[377981456,1754646638576,-1097.75,0.00018769,2]
[377981457,1754646638586,-400.0,0.00018769,2]
[377981458,1754646638595,-468.41,0.00018769,2]
[377981459,1754646638605,-420.26,0.00018769,2]
[377981460,1754646638614,-400.0,0.00018769,2]
[377981461,1754646638623,-400.0,0.00018769,2]
[377981462,1754646638633,-400.0,0.00018769,2]
[377981463,1754646638642,-1649.47,0.00018769,2]
[377981464,1754646638651,-182.42132872,0.00018769,2]
[377981465,1754646638663,-240.47634042,0.00018769,2]
[377981467,1754646638672,-487.72,0.00018769,2]
[377981469,1754646638682,-400.0,0.00018769,2]
[377981471,1754646638691,-428.27578473,0.00018769,2]
[377981473,1754646638700,-635.1,0.00018769,2]
[377981475,1754646638710,-400.0,0.00018769,2]
[377981477,1754646638719,-400.0,0.00018769,2]
[377981479,1754646638728,-958.9,0.00018769,2]
[377981481,1754646638738,-401.57170377,0.00018769,2]
[377981483,1754646638747,-406.76,0.00018769,2]
[377981485,1754646638756,-400.0,0.00018769,2]
[377981487,1754646638768,-400.0,0.00018769,2]
[377981489,1754646638778,-592.1,0.00018769,2]
[377981491,1754646638787,-400.0,0.00018769,2]
[377981493,1754646638796,-400.0,0.00018769,2]
[377981494,1754646638807,-1185.02,0.00018769,2]
[377981496,1754646638816,-400.0,0.00018769,2]
[377981498,1754646638825,-400.0,0.00018769,2]
[377981500,1754646638834,-1478.19,0.00018769,2]
[377981502,1754646638845,-400.0,0.00018769,2]
[377981504,1754646638855,-400.0,0.00018769,2]
[377981506,1754646638864,-400.0,0.00018769,2]
[377981508,1754646638873,-400.0,0.00018769,2]
[377981510,1754646638882,-400.0,0.00018769,2]
[377981512,1754646638891,-400.0,0.00018769,2]
[377981514,1754646638902,-400.0,0.00018769,2]
[377981516,1754646638911,-2161.41,0.00018769,2]
[377981518,1754646638921,-400.0,0.00018769,2]
[377981520,1754646638930,-400.0,0.00018769,2]
[377981521,1754646638939,-400.0,0.00018769,2]
[377981524,1754646638949,-1226.37,0.00018769,2]
[377981526,1754646638958,-400.0,0.00018769,2]
[377981528,1754646638967,-580.84,0.00018769,2]
[377981530,1754646638976,-400.0,0.00018769,2]
[377981531,1754646638986,-319.5075685,0.00018769,2]
[377981533,1754646638995,-400.0,0.00018769,2]
[377981535,1754646639004,-438.87,0.00018769,2]
[377981537,1754646639014,-400.0,0.00018769,2]
[377981539,1754646639022,-400.0,0.00018769,2]
[377981541,1754646639031,-400.0,0.00018769,2]
[377981543,1754646639040,-890.21,0.00018769,2]
[377981545,1754646639050,-1335.18,0.00018769,2]
[377981547,1754646639059,-557.6,0.00018769,2]
[377981549,1754646639068,-662.5,0.00018769,2]
[377981551,1754646639077,-400.0,0.00018769,2]
[377981553,1754646639086,-460.24,0.00018769,2]
[377981555,1754646639096,-493.99,0.00018769,2]
[377981557,1754646639106,-490.1,0.00018769,2]
[377981559,1754646639115,-1000.0,0.00018769,2]
[377981561,1754646639125,-581.44,0.00018769,2]
[377981563,1754646639134,-431.75,0.00018769,2]
[377981565,1754646639143,-729.94050616,0.00018769,2]
[377981589,1754646640055,-834.27949384,0.00018769,2]
[377981590,1754646640064,-502.58,0.00018769,2]
[377981591,1754646640074,-189.64379004,0.00018769,2]
[377981593,1754646640156,-210.35620996,0.00018769,2]
[377981594,1754646640165,-400.0,0.00018769,2]
[377981595,1754646640174,-400.0,0.00018769,2]
[377981596,1754646640183,-570.7,0.00018769,2]
[377981597,1754646640193,-361.85082344,0.00018769,2]
[377981598,1754646640235,-1457.15917656,0.00018769,2]
[377981599,1754646640244,-574.78,0.00018769,2]
[377981600,1754646640253,-400.0,0.00018769,2]
[377981601,1754646640262,-418.53,0.00018769,2]
[377981602,1754646640271,-826.69,0.00018769,2]
[377981603,1754646640281,-400.0,0.00018769,2]
[377981604,1754646640290,-400.0,0.00018769,2]
[377981605,1754646640299,-982.45,0.00018769,2]
[377981606,1754646640308,-400.0,0.00018769,2]
[377981607,1754646640317,-639.32,0.00018769,2]
[377981608,1754646640327,-354.844378,0.00018769,2]
[377981609,1754646640336,-400.0,0.00018769,2]
[377981610,1754646640345,-887.3,0.00018769,2]
[377981611,1754646640355,-400.0,0.00018769,2]
[377981612,1754646640364,-400.0,0.00018769,2]
[377981613,1754646640374,-319.21468529,0.00018769,2]
[377981614,1754646640383,-500.0,0.00018769,2]
[377981615,1754646640394,-500.0,0.00018769,2]
[377981616,1754646640404,-500.0,0.00018769,2]
[377981617,1754646640414,-229.83407639,0.00018769,2]
[377981618,1754646640424,-500.0,0.00018769,2]
[377981619,1754646640433,-500.0,0.00018769,2]
[377981620,1754646640443,-500.0,0.00018769,2]
[377981621,1754646640453,-500.0,0.00018769,2]
[377981622,1754646640462,-276.91935286,0.00018769,2]
[377981623,1754646640472,-500.0,0.00018769,2]
[377981625,1754646640481,-500.0,0.00018769,2]
[377981627,1754646640491,-500.0,0.00018769,2]
[377981629,1754646640501,-210.41583277,0.00018769,2]
[377981631,1754646640510,-400.0,0.0001877,2]
[377981633,1754646640521,-506.71,0.0001877,2]
[377981635,1754646640530,-400.0,0.0001877,2]
[377981637,1754646640540,-527.27,0.0001877,2]
[377981639,1754646640549,-412.07,0.0001877,2]
[377981641,1754646640558,-380.11,0.0001877,2]
[377981643,1754646640567,-400.0,0.0001877,2]
[377981645,1754646640577,-400.0,0.0001877,2]
[377981647,1754646640586,-400.0,0.0001877,2]
[377981648,1754646640595,-601.58,0.0001877,2]
[377981650,1754646640604,-400.0,0.0001877,2]
[377981652,1754646640613,-400.0,0.0001877,2]
[377981654,1754646640626,-400.0,0.0001877,2]
[377981656,1754646640635,-400.0,0.0001877,2]
[377981658,1754646640644,-400.0,0.0001877,2]
[377981660,1754646640653,-698.23,0.0001877,2]
[377981662,1754646640662,-400.0,0.0001877,2]
[377981664,1754646640672,-400.0,0.0001877,2]
[377981666,1754646640681,-400.0,0.0001877,2]
[377981668,1754646640690,-400.0,0.0001877,2]
[377981670,1754646640700,-400.0,0.0001877,2]
[377981672,1754646640709,-400.0,0.0001877,2]
[377981674,1754646640718,-400.0,0.0001877,2]
[377981676,1754646640727,-400.0,0.0001877,2]
[377981678,1754646640738,-400.0,0.0001877,2]
[377981680,1754646640748,-400.0,0.0001877,2]
[377981682,1754646640757,-400.0,0.0001877,2]
[377981684,1754646640769,-400.0,0.0001877,2]
[377981686,1754646640778,-400.0,0.0001877,2]
[377981688,1754646640787,-443.44,0.0001877,2]
[377981689,1754646640796,-488.88,0.0001877,2]
[377981691,1754646640805,-400.0,0.0001877,2]
[377981693,1754646640816,-406.1,0.0001877,2]
[377981695,1754646640825,-678.49,0.0001877,2]
[377981697,1754646640835,-400.0,0.0001877,2]
[377981699,1754646640846,-400.0,0.0001877,2]
[377981701,1754646640855,-400.0,0.0001877,2]
[377981703,1754646640864,-400.0,0.0001877,2]
[377981705,1754646640875,-400.0,0.0001877,2]
[377981707,1754646640884,-400.0,0.0001877,2]
[377981709,1754646640893,-400.0,0.0001877,2]
[377981710,1754646640903,-400.0,0.0001877,2]
[377981713,1754646640913,-629.03,0.0001877,2]
[377981714,1754646640923,-793.43,0.0001877,2]
[377981716,1754646640932,-784.45,0.0001877,2]
[377981718,1754646640941,-400.0,0.0001877,2]
[377981719,1754646640951,-400.0,0.0001877,2]
[377981720,1754646640960,-835.62,0.0001877,2]
[377981721,1754646640970,-494.2,0.0001877,2]
[377981722,1754646640979,-390.15996319,0.0001877,2]
[377981723,1754646640988,-400.0,0.0001877,2]
[377981724,1754646640997,-400.0,0.0001877,2]
[377981725,1754646641007,-409.24,0.0001877,2]
[377981726,1754646641016,-400.0,0.0001877,2]
[377981727,1754646641026,-400.0,0.0001877,2]
[377981728,1754646641035,-778.08,0.0001877,2]
[377981729,1754646641044,-466.02,0.0001877,2]
[377981730,1754646641053,-400.0,0.0001877,2]
[377981731,1754646641063,-400.0,0.0001877,2]
[377981732,1754646641074,-400.0,0.0001877,2]
[377981733,1754646641085,-400.0,0.0001877,2]
[377981734,1754646641095,-467.79,0.0001877,2]
[377981735,1754646641104,-400.0,0.0001877,2]
[377981736,1754646641113,-400.0,0.0001877,2]
[377981737,1754646641125,-400.0,0.0001877,2]
[377981738,1754646641134,-438.32284882,0.0001877,2]
[377981739,1754646641143,-660.28,0.0001877,2]
[377981740,1754646641154,-667.12,0.0001877,2]
[377981741,1754646641164,-400.0,0.0001877,2]
[377981742,1754646641174,-400.0,0.0001877,2]
[377981743,1754646641184,-400.0,0.0001877,2]
[377981744,1754646641194,-400.0,0.0001877,2]
[377981745,1754646641203,-421.78,0.0001877,2]
[377981746,1754646641213,-400.0,0.0001877,2]
[377981747,1754646641223,-400.0,0.0001877,2]
[377981748,1754646641234,-404.57822801,0.0001877,2]
[377981749,1754646641242,-400.0,0.0001877,2]
[377981750,1754646641251,-605.59,0.0001877,2]
[377981751,1754646641260,-400.0,0.0001877,2]
[377981752,1754646641269,-483.69,0.0001877,2]
[377981753,1754646641278,-400.0,0.0001877,2]
[377981754,1754646641287,-400.0,0.0001877,2]
[377981755,1754646641296,-986.12,0.0001877,2]
[377981756,1754646641305,-400.0,0.0001877,2]
[377981757,1754646641315,-400.0,0.0001877,2]
[377981758,1754646641325,-400.0,0.0001877,2]
[377981759,1754646641336,-400.0,0.0001877,2]
[377981760,1754646641346,-868.85,0.0001877,2]
[377981761,1754646641356,-400.0,0.0001877,2]
[377981762,1754646641365,-492.92,0.0001877,2]
[377981763,1754646641375,-416.95,0.0001877,2]
[377981764,1754646641383,-403.18318403,0.0001877,2]
[377981765,1754646641393,-400.0,0.0001877,2]
[377981766,1754646641401,-400.0,0.0001877,2]
[377981767,1754646641410,-400.0,0.0001877,2]
[377981768,1754646641419,-400.0,0.0001877,2]
[377981769,1754646641428,-428.64294187,0.0001877,2]
[377981770,1754646641437,-400.0,0.0001877,2]
[377981771,1754646641447,-635.97,0.0001877,2]
[377981772,1754646641456,-862.83,0.0001877,2]
[377981773,1754646641465,-400.0,0.0001877,2]
[377981774,1754646641474,-400.0,0.0001877,2]
[377981775,1754646641483,-400.0,0.0001877,2]
[377981776,1754646641493,-670.02,0.0001877,2]
[377981777,1754646641733,-400.0,0.0001877,2]
[377981778,1754646641743,-400.0,0.0001877,2]
[377981779,1754646641753,-400.0,0.0001877,2]
[377981780,1754646641763,-676.11,0.0001877,2]
[377981781,1754646641776,-400.0,0.0001877,2]
[377981782,1754646641785,-400.0,0.0001877,2]
[377981783,1754646641794,-400.0,0.0001877,2]
[377981784,1754646641803,-725.15,0.0001877,2]
[377981785,1754646641813,-400.0,0.0001877,2]
[377981786,1754646641823,-614.84,0.0001877,2]
[377981787,1754646641832,-400.0,0.0001877,2]
[377981788,1754646641842,-400.0,0.0001877,2]
[377981789,1754646641854,-400.0,0.0001877,2]
[377981790,1754646641864,-400.0,0.0001877,2]
[377981791,1754646641874,-903.1,0.0001877,2]
[377981792,1754646641884,-400.0,0.0001877,2]
[377981793,1754646641894,-400.0,0.0001877,2]
[377981794,1754646641903,-507.02,0.0001877,2]
[377981795,1754646641912,-400.0,0.0001877,2]
[377981796,1754646641921,-400.0,0.0001877,2]
[377981797,1754646641930,-400.0,0.0001877,2]
[377981798,1754646641939,-400.0,0.0001877,2]
[377981799,1754646641949,-400.0,0.0001877,2]
[377981800,1754646641958,-914.29,0.0001877,2]
[377981801,1754646641967,-400.0,0.0001877,2]
[377981802,1754646641976,-761.45,0.0001877,2]
[377981803,1754646641986,-841.15,0.0001877,2]
[377981804,1754646641995,-400.0,0.0001877,2]
[377981805,1754646642005,-586.03,0.0001877,2]
[377981806,1754646642014,-689.12,0.0001877,2]
[377981807,1754646642023,-997.5,0.0001877,2]
[377981808,1754646642033,-941.83,0.0001877,2]
[377981809,1754646642042,-449.65,0.0001877,2]
[377981810,1754646642053,-614.13,0.0001877,2]
[377981811,1754646642063,-442.71,0.0001877,2]
[377981812,1754646642072,-400.0,0.0001877,2]
[377981813,1754646642081,-400.0,0.0001877,2]
[377981814,1754646642091,-1128.77,0.0001877,2]
[377981815,1754646642101,-462.29,0.0001877,2]
[377981816,1754646642110,-729.27,0.0001877,2]
[377981817,1754646642120,-400.0,0.0001877,2]
[377981818,1754646642129,-400.0,0.0001877,2]
[377981819,1754646642138,-366.15977,0.0001877,2]
[377981820,1754646642147,-400.0,0.0001877,2]
[377981821,1754646642157,-579.44,0.0001877,2]
[377981822,1754646642166,-664.03,0.0001877,2]
[377981823,1754646642175,-400.0,0.0001877,2]
[377981824,1754646642184,-1122.3,0.0001877,2]
[377981825,1754646642193,-431.02655,0.0001877,2]
[377981826,1754646642202,-400.0,0.0001877,2]
[377981827,1754646642212,-400.0,0.0001877,2]
[377981828,1754646642220,-400.0,0.0001877,2]
[377981829,1754646642230,-400.0,0.0001877,2]
[377981830,1754646642240,-400.0,0.0001877,2]
[377981831,1754646642248,-400.0,0.0001877,2]
[377981832,1754646642258,-558.97,0.0001877,2]
[377981833,1754646642267,-844.87,0.0001877,2]
[377981834,1754646642276,-487.03,0.0001877,2]
[377981835,1754646642285,-485.21,0.0001877,2]
[377981836,1754646642295,-400.0,0.0001877,2]
[377981837,1754646642304,-641.69,0.0001877,2]
[377981838,1754646642313,-1037.04,0.0001877,2]
[377981839,1754646642324,-647.37,0.0001877,2]
[377981840,1754646642334,-543.64,0.0001877,2]
[377981841,1754646642343,-769.63,0.0001877,2]
[377981842,1754646642354,-400.0,0.0001877,2]
[377981843,1754646642363,-578.73,0.0001877,2]
[377981844,1754646642372,-400.0,0.0001877,2]
[377981845,1754646642382,-402.00323985,0.0001877,2]
[377981846,1754646642392,-400.0,0.0001877,2]
[377981847,1754646642402,-400.0,0.0001877,2]
[377981848,1754646642411,-400.0,0.0001877,2]
[377981849,1754646642421,-400.0,0.0001877,2]
[377981850,1754646642430,-400.0,0.0001877,2]
[377981851,1754646642441,-737.9,0.0001877,2]
[377981852,1754646642451,-752.82,0.0001877,2]
[377981853,1754646642460,-400.0,0.0001877,2]
[377981854,1754646642470,-400.0,0.0001877,2]
[377981855,1754646642481,-420.98,0.0001877,2]
[377981856,1754646642491,-400.0,0.0001877,2]
[377981857,1754646642500,-400.0,0.0001877,2]
[377981858,1754646642509,-400.0,0.0001877,2]
[377981859,1754646642521,-1243.94,0.0001877,2]
[377981860,1754646642531,-400.0,0.0001877,2]
[377981861,1754646642541,-419.99,0.0001877,2]
[377981862,1754646642551,-1001.44,0.0001877,2]
[377981863,1754646642560,-865.01,0.0001877,2]
[377981864,1754646642570,-894.83,0.0001877,2]
[377981865,1754646642580,-400.0,0.0001877,2]
[377981866,1754646642590,-775.74,0.0001877,2]
[377981867,1754646642600,-717.02,0.0001877,2]
[377981868,1754646642609,-583.72,0.0001877,2]
[377981869,1754646642619,-157.04228164,0.0001877,2]
[377981870,1754646642631,-391.11854549,0.0001877,2]
[377981871,1754646642642,-424.82,0.0001877,2]
[377981872,1754646642653,-483.74,0.0001877,2]
[377981873,1754646642662,-400.0,0.0001877,2]
[377981874,1754646642673,-873.35,0.0001877,2]
[377981875,1754646642683,-400.0,0.0001877,2]
[377981876,1754646642692,-736.74,0.0001877,2]
[377981877,1754646642702,-567.7,0.0001877,2]
[377981878,1754646642711,-400.0,0.0001877,2]
[377981879,1754646642722,-737.55,0.0001877,2]
[377981880,1754646642731,-677.51,0.0001877,2]
[377981881,1754646642741,-400.0,0.0001877,2]
[377981882,1754646642750,-701.07,0.0001877,2]
[377981883,1754646642759,-400.0,0.0001877,2]
[377981884,1754646642773,-400.0,0.0001877,2]
[377981885,1754646642782,-400.0,0.0001877,2]
[377981886,1754646642791,-1256.79,0.0001877,2]
[377981887,1754646642800,-400.0,0.0001877,2]
[377981888,1754646642811,-400.0,0.0001877,2]
[377981889,1754646642821,-400.0,0.0001877,2]
[377981890,1754646642830,-5340.71,0.0001877,2]
[377981891,1754646642841,-400.0,0.0001877,2]
[377981892,1754646642850,-400.0,0.0001877,2]
[377981893,1754646642860,-400.0,0.0001877,2]
[377981894,1754646642869,-564.6,0.0001877,2]
[377981895,1754646642880,-400.0,0.0001877,2]
[377981896,1754646642889,-400.0,0.0001877,2]
[377981897,1754646642899,-1346.61,0.0001877,2]
[377981898,1754646642909,-760.84,0.0001877,2]
[377981899,1754646642918,-400.0,0.0001877,2]
[377981900,1754646642929,-638.2,0.0001877,2]
[377981901,1754646642939,-641.88,0.0001877,2]
[377981902,1754646642949,-764.69,0.0001877,2]
[377981903,1754646642959,-599.47,0.0001877,2]
[377981904,1754646642969,-400.0,0.0001877,2]
[377981905,1754646642978,-527.83,0.0001877,2]
[377981906,1754646642988,-400.0,0.0001877,2]
[377981907,1754646642997,-400.0,0.0001877,2]
[377981908,1754646643007,-1275.31,0.0001877,2]
[377981909,1754646643016,-400.0,0.0001877,2]
[377981911,1754646643025,-1143.37,0.0001877,2]
[377981912,1754646643035,-400.0,0.0001877,2]
[377981913,1754646643044,-1126.21,0.0001877,2]
[377981914,1754646643053,-400.0,0.0001877,2]
[377981915,1754646643062,-1322.42,0.0001877,2]
[377981916,1754646643072,-400.0,0.0001877,2]
[377981917,1754646643082,-400.0,0.0001877,2]
[377981918,1754646643092,-429.05,0.0001877,2]
[377981919,1754646643101,-915.85,0.0001877,2]
[377981920,1754646643110,-754.88,0.0001877,2]
[377981921,1754646643122,-746.86,0.0001877,2]
[377981922,1754646643131,-691.37,0.0001877,2]
[377981923,1754646643141,-400.0,0.0001877,2]
[377981924,1754646643150,-400.0,0.0001877,2]
[377981925,1754646643160,-1106.28,0.0001877,2]
[377981926,1754646643169,-400.0,0.0001877,2]
[377981927,1754646643178,-411.76,0.0001877,2]
[377981928,1754646643187,-400.0,0.0001877,2]
[377981929,1754646643197,-1051.92,0.0001877,2]
[377981930,1754646643206,-400.0,0.0001877,2]
[377981931,1754646643215,-930.69,0.0001877,2]
[377981932,1754646643224,-905.37,0.0001877,2]
[377981933,1754646643233,-400.0,0.0001877,2]
[377981934,1754646643244,-696.75,0.0001877,2]
[377981935,1754646643253,-400.0,0.0001877,2]
[377981936,1754646643262,-400.0,0.0001877,2]
[377981937,1754646643272,-459.28,0.0001877,2]
[377981938,1754646643281,-400.0,0.0001877,2]
[377981939,1754646643290,-628.94,0.0001877,2]
[377981940,1754646643299,-622.77,0.0001877,2]
[377981941,1754646643308,-1110.17,0.0001877,2]
[377981942,1754646643317,-400.0,0.0001877,2]
[377981943,1754646643327,-718.84,0.0001877,2]
[377981944,1754646643336,-400.0,0.0001877,2]
[377981945,1754646643345,-400.0,0.0001877,2]
[377981946,1754646643354,-400.0,0.0001877,2]
[377981947,1754646643363,-1114.5,0.0001877,2]
[377981948,1754646643373,-643.66,0.0001877,2]
[377981949,1754646643382,-724.11,0.0001877,2]
[377981950,1754646643391,-502.91,0.0001877,2]
[377981951,1754646643400,-400.0,0.0001877,2]
[377981952,1754646643409,-400.0,0.0001877,2]
[377981953,1754646643418,-875.01,0.0001877,2]
[377981954,1754646643427,-917.34,0.0001877,2]
[377981955,1754646643436,-400.0,0.0001877,2]
[377981956,1754646643446,-1676.99,0.0001877,2]
[377981957,1754646643455,-711.65,0.0001877,2]
[377981958,1754646643464,-400.0,0.0001877,2]
[377981959,1754646643473,-215.12061598,0.0001877,2]
[377981960,1754646643482,-1048.86,0.0001877,2]
[377981961,1754646643492,-400.0,0.0001877,2]
[377981962,1754646643501,-400.0,0.0001877,2]
[377981963,1754646643511,-522.89,0.0001877,2]
[377981964,1754646643520,-400.0,0.0001877,2]
[377981965,1754646643529,-400.0,0.0001877,2]
[377981967,1754646643539,-831.6,0.0001877,2]
[377981969,1754646643548,-2072.07,0.0001877,2]
[377981970,1754646643557,-400.0,0.0001877,2]
[377981972,1754646643566,-1230.77,0.0001877,2]
[377981974,1754646643575,-400.0,0.0001877,2]
[377981975,1754646643584,-747.05,0.0001877,2]
[377981976,1754646643594,-400.0,0.0001877,2]
[377981977,1754646643603,-400.0,0.0001877,2]
[377981978,1754646643612,-400.0,0.0001877,2]
[377981979,1754646643621,-1002.82,0.0001877,2]
[377981980,1754646643630,-400.0,0.0001877,2]
[377981981,1754646643639,-400.0,0.0001877,2]
[377981982,1754646643649,-497.64,0.0001877,2]
[377981983,1754646643658,-991.98,0.0001877,2]
[377981984,1754646643667,-581.43,0.0001877,2]
[377981985,1754646643676,-451.09,0.0001877,2]
[377981986,1754646643685,-879.28,0.0001877,2]
[377981987,1754646643694,-1921.5,0.0001877,2]
[377981988,1754646643703,-711.33,0.0001877,2]
[377981989,1754646643712,-400.0,0.0001877,2]
[377981990,1754646643721,-587.35,0.0001877,2]
[377981991,1754646643730,-400.0,0.0001877,2]
[377981992,1754646643740,-534.04,0.0001877,2]
[377981993,1754646643750,-483.77,0.0001877,2]
[377981994,1754646643759,-400.0,0.0001877,2]
[377981995,1754646643772,-400.0,0.0001877,2]
[377981996,1754646643781,-747.42,0.0001877,2]